bitfinex/quotes_SOLUSD_20250219
["timestamp","ask_amount","ask_price","bid_price","bid_amount"]
[1739923787945,39.7416928,170.07,170.02,94.31184853]
[1739923788158,39.7416928,170.07,170.02,100.19344853]
[1739923788643,54.57576574,170.14,170.03,39.7416928]
[1739923788850,39.7416928,170.13,170.07,13.41184853]
[1739923789140,39.7416928,170.1,170.07,80.9]
[1739923789346,39.7416928,170.09,170.07,80.9]
[1739923789650,39.7416928,170.08,170.07,80.9]
[1739923791641,20.0,170.14,170.07,80.9]
[1739923791840,39.7416928,170.12,170.07,86.7799]
[1739923792032,39.80519689,170.12,170.07,86.7799]
[1739923792226,39.80519689,170.13,170.07,86.7799]
[1739923792426,8.39829977,170.18,170.08,13.41184853]
[1739923792427,39.80519689,170.14,170.08,13.41184853]
[1739923792642,39.80519689,170.14,170.08,101.81184853]
[1739923794147,39.80519689,170.15,170.09,74.01867963]
[1739923794455,39.80519689,170.19,170.12,39.80519689]
[1739923794747,5.8747,170.22,170.12,88.4]
[1739923794953,39.80519689,170.17,170.12,88.4]
[1739923795128,39.80519689,170.16,170.12,88.4]
[1739923796128,39.80519689,170.16,170.12,94.278]
[1739923796560,39.80519689,170.17,170.12,94.278]
[1739923797044,39.7814784,170.16,170.12,94.278]
[1739923797247,5.8758,170.19,170.12,94.278]
[1739923797449,5.8744,170.23,170.12,167.09644388]
[1739923797628,39.7814784,170.18,170.12,127.31496548]
[1739923798024,39.7814784,170.17,170.12,127.31496548]
[1739923799462,39.7814784,170.18,170.12,127.31496548]
[1739923799758,39.7814784,170.17,170.12,127.31496548]
[1739923800558,39.7814784,170.18,170.12,127.31496548]
[1739923800849,39.7814784,170.18,170.13,13.41184853]
[1739923801553,39.7814784,170.19,170.13,13.41184853]
[1739923802155,39.7814784,170.18,170.13,101.81184853]
[1739923802457,39.7814784,170.17,170.13,101.81184853]
[1739923803149,39.7814784,170.16,170.13,88.4]
[1739923803331,39.7814784,170.15,170.13,88.4]
[1739923803732,0.03,170.19,170.13,88.4]
[1739923804039,39.7814784,170.18,170.13,94.2778]
[1739923804355,39.7814784,170.17,170.13,94.2778]
[1739923804741,24.47999518,170.18,170.13,94.2778]
[1739923805451,24.50999518,170.19,170.13,94.2778]
[1739923806345,24.47999518,170.17,170.13,88.4]
[1739923806545,24.47999518,170.14,170.13,88.4]
[1739923806748,24.47999518,170.14,170.13,80.9]
[1739923806949,24.47999518,170.15,170.13,80.9]
[1739923807338,24.50999518,170.19,170.13,80.9]
[1739923807551,24.50999518,170.19,170.13,94.2777]
[1739923809138,24.47999518,170.16,170.13,88.4]
[1739923809663,24.47999518,170.15,170.13,80.9]
[1739923810933,0.03,170.19,170.15,13.41184853]
[1739923811130,0.03,170.19,170.16,5.8768]
[1739923812464,0.03,170.19,170.17,13.41184853]
[1739923812645,0.03,170.19,170.17,101.81184853]
[1739923813335,0.03,170.19,170.18,5.8761]
[1739923814342,0.03,170.19,170.18,19.28794853]
[1739923814967,0.03,170.19,170.18,167.55794371]
[1739923815269,0.03,170.19,170.18,185.25794371]
[1739923816363,24.47999518,170.27,170.2,35.39]
[1739923816688,24.47999518,170.27,170.21,37.89184371]
[1739923817013,24.47999518,170.26,170.21,13.41184853]
[1739923817157,24.47999518,170.27,170.21,13.41184853]
[1739923817353,24.47999518,170.29,170.22,24.47999518]
[1739923817696,24.47999518,170.29,170.22,30.35469518]
[1739923817983,24.47999518,170.29,170.22,118.75469518]
[1739923819185,24.47999518,170.29,170.23,73.28184371]
[1739923819484,24.47999518,170.3,170.23,161.68184371]
[1739923819687,24.47999518,170.3,170.23,166.96184371]
[1739923819899,44.47999518,170.31,170.25,13.41184853]
[1739923820067,44.47999518,170.31,170.25,101.81184853]
[1739923821086,44.47999518,170.31,170.26,5.8733]
[1739923821383,24.47999518,170.32,170.26,5.8733]
[1739923821557,24.47999518,170.32,170.26,94.2733]
[1739923822879,24.47999518,170.31,170.26,94.2733]
[1739923823308,24.47999518,170.32,170.26,94.2733]
[1739923826423,24.47999518,170.34,170.27,74.94044371]
[1739923826983,0.03,170.32,170.27,74.94044371]
[1739923827287,0.03,170.32,170.29,48.80184853]
[1739923827596,0.03,170.32,170.29,73.28184371]
[1739923827806,0.03,170.32,170.29,161.68184371]
[1739923827994,0.03,170.32,170.31,48.80184853]
[1739923828197,0.03,170.32,170.31,129.6616]
[1739923829686,0.03,170.32,170.31,167.55344371]
[1739923830406,0.03,170.37,170.31,199.93254371]
[1739923830611,0.03,170.37,170.33,48.80184853]
[1739923830799,0.03,170.37,170.33,73.28184371]
[1739923831413,0.03,170.37,170.33,48.80184853]
[1739923831986,0.03,170.37,170.33,35.39]
[1739923832213,0.03,170.37,170.32,35.39]
[1739923832514,24.50999518,170.37,170.33,5.8709]
[1739923833411,24.50999518,170.37,170.31,80.9]
[1739923833412,24.47999518,170.36,170.31,80.9]
[1739923833601,24.47999518,170.32,170.31,80.9]
[1739923834007,24.47999518,170.32,170.29,86.7722]
[1739923834716,24.47999518,170.32,170.29,80.9]
[1739923835016,24.47999518,170.31,170.29,80.9]
[1739923835192,24.47999518,170.32,170.29,80.9]
[1739923835512,24.47999518,170.32,170.29,86.7723]
[1739923835711,24.47999518,170.33,170.29,86.7723]
[1739923837615,24.47999518,170.32,170.29,86.7723]
[1739923839204,24.47999518,170.32,170.29,86.8353]
[1739923843424,24.47999518,170.33,170.29,86.8353]
[1739923843919,24.47999518,170.34,170.29,86.8353]
[1739923844119,0.03,170.37,170.33,24.47999518]
[1739923844311,0.03,170.37,170.33,105.37999518]
[1739923845002,0.03,170.37,170.34,24.47999518]
[1739923845623,0.03,170.37,170.35,24.47999518]
[1739923845826,0.03,170.37,170.36,5.8699]
[1739923846819,0.03,170.37,170.36,65.73989518]
[1739923847325,0.03,170.37,170.36,41.2599]
[1739923847900,0.03,170.37,170.35,80.9]
[1739923848108,0.03,170.37,170.35,86.7702]
[1739923848825,24.50999518,170.37,170.35,80.9]
[1739923849427,24.47999518,170.36,170.35,80.9]
[1739923849734,30.34989518,170.36,170.3,94.2719]
[1739923850029,24.47999518,170.33,170.3,94.2719]
[1739923850228,24.47999518,170.33,170.3,86.7719]
[1739923850608,24.47999518,170.34,170.32,0.063]
[1739923851032,24.47999518,170.33,170.32,0.063]
[1739923853431,30.55749518,170.37,170.32,0.063]
[1739923853726,24.47999518,170.35,170.32,0.063]
[1739923854027,0.03,170.37,170.32,0.063]
[1739923854228,24.50999518,170.37,170.32,0.063]
[1739923855211,0.03,170.37,170.32,24.54299518]
[1739923855630,0.03,170.37,170.33,24.47999518]
[1739923856014,0.03,170.37,170.33,112.87999518]
[1739923856219,0.03,170.37,170.34,5.8706]
[1739923856437,0.03,170.37,170.34,86.7706]
[1739923859627,0.03,170.37,170.35,24.47999518]
[1739923860910,0.03,170.37,170.36,5.8699]
[1739923861114,0.03,170.37,170.36,86.7699]
[1739923865431,0.03,170.37,170.36,111.24989518]
[1739923866636,0.03,170.37,170.36,122.93452333]
[1739923866842,0.03,170.37,170.36,158.32452333]
[1739923867244,0.03,170.39,170.37,1.6586]
[1739923867422,0.03,170.39,170.38,28.66462333]
[1739923867627,15.2527748,170.48,170.42,15.2527748]
[1739923867939,15.2527748,170.47,170.42,80.9]
[1739923868250,15.2527748,170.48,170.43,5.8675]
[1739923868454,15.2527748,170.47,170.43,5.8675]
[1739923868811,2.0,170.5,170.45,15.2527748]
[1739923869219,2.0,170.5,170.44,15.2527748]
[1739923869421,17.2527748,170.5,170.43,107.0002748]
[1739923869841,15.2527748,170.49,170.43,91.7475]
[1739923870153,15.2527748,170.45,170.43,80.9]
[1739923870321,15.2527748,170.44,170.43,80.9]
[1739923870524,15.2527748,170.44,170.41,85.88]
[1739923871045,15.2527748,170.45,170.41,91.7481]
[1739923871217,15.2527748,170.42,170.41,85.88]
[1739923871421,15.2527748,170.42,170.41,80.9]
[1739923872155,15.2527748,170.42,170.36,80.9]
[1739923872449,15.2527748,170.39,170.34,80.9]
[1739923872652,24.41813044,170.39,170.34,80.9]
[1739923873218,24.41813044,170.41,170.35,24.41813044]
[1739923873451,24.41813044,170.42,170.36,5.8699]
[1739923874453,24.41813044,170.37,170.34,86.7705]
[1739923874620,6.2126,170.44,170.32,80.963]
[1739923874621,24.41813044,170.36,170.32,80.963]
[1739923874821,24.41813044,170.35,170.32,86.8341]
[1739923875148,24.41813044,170.36,170.32,86.8341]
[1739923875520,24.41813044,170.35,170.32,80.963]
[1739923875724,24.41813044,170.34,170.32,80.963]
[1739923876258,24.41813044,170.33,170.32,80.963]
[1739923876558,24.41813044,170.33,170.32,0.063]
[1739923877220,54.57576574,170.39,170.32,0.063]
[1739923877425,4.96,170.4,170.32,80.963]
[1739923877724,24.41813044,170.35,170.32,80.963]
[1739923877930,24.41813044,170.34,170.32,80.963]
[1739923879133,59.53576574,170.4,170.32,80.963]
[1739923879460,24.41813044,170.35,170.32,80.963]
[1739923879625,24.41813044,170.34,170.32,80.963]
[1739923880439,24.41813044,170.33,170.32,80.963]
[1739923880639,24.41813044,170.33,170.32,0.063]
[1739923884181,37.82997897,170.33,170.32,0.063]
[1739923884360,38.82997897,170.33,170.32,0.063]
[1739923884742,20.0,170.3,170.29,0.063]
[1739923884959,44.41813044,170.3,170.29,0.063]
[1739923885455,54.57576574,170.32,170.29,0.063]
[1739923885649,24.41813044,170.3,170.29,0.063]
[1739923886258,44.41813044,170.3,170.29,0.063]
[1739923886464,20.0,170.3,170.29,0.063]
[1739923886649,78.99389618,170.32,170.29,0.063]
[1739923887876,44.41813044,170.33,170.29,0.063]
[1739923888087,44.41813044,170.33,170.29,80.963]
[1739923889251,24.41813044,170.32,170.29,80.963]
[1739923889552,20.0,170.33,170.29,0.063]
[1739923889553,24.41813044,170.3,170.29,0.063]
[1739923891464,24.41813044,170.31,170.29,0.063]
[1739923891851,24.41813044,170.3,170.29,0.063]
[1739923892690,54.57576574,170.35,170.29,0.063]
[1739923892844,6.0881,170.39,170.29,96.24030873]
[1739923893052,6.0881,170.39,170.32,15.27730873]
[1739923893482,15.27730873,170.38,170.32,15.27730873]
[1739923893687,15.27730873,170.38,170.32,21.14840873]
[1739923894061,0.03,170.39,170.32,102.04840873]
[1739923894265,0.03,170.39,170.35,15.27730873]
[1739923894614,0.03,170.39,170.35,80.9]
[1739923896688,0.03,170.39,170.35,86.7701]
[1739923899806,0.03,170.39,170.35,80.9]
[1739923900011,15.30730873,170.39,170.35,80.9]
[1739923900309,15.27730873,170.38,170.35,80.9]
[1739923900502,15.27730873,170.36,170.35,80.9]
[1739923902508,15.27730873,170.36,170.3,85.8]
[1739923902809,15.27730873,170.33,170.3,85.8]
[1739923903210,15.27730873,170.34,170.3,80.9]
[1739923905214,15.27730873,170.31,170.29,0.063]
[1739923905416,15.27730873,170.3,170.29,0.063]
[1739923905626,15.27730873,170.31,170.29,0.063]
[1739923905918,15.27730873,170.32,170.29,0.063]
[1739923906122,15.27730873,170.31,170.29,0.063]
[1739923909992,15.27730873,170.3,170.29,0.063]
[1739923915019,54.57576574,170.37,170.29,15.34030873]
[1739923915321,54.57576574,170.37,170.29,0.063]
[1739923915322,15.27730873,170.34,170.29,0.063]
[1739923917725,15.27730873,170.35,170.29,15.34030873]
[1739923918029,15.27730873,170.36,170.3,15.27730873]
[1739923918315,69.85307447,170.37,170.31,15.27730873]
[1739923918498,69.85307447,170.37,170.3,15.27730873]
[1739923918700,15.27730873,170.35,170.29,21.21260873]
[1739923919318,15.27730873,170.33,170.29,0.063]
[1739923919519,69.85307447,170.37,170.29,0.063]
[1739923919520,15.27730873,170.31,170.29,0.063]
[1739923919820,15.27730873,170.3,170.29,0.063]
[1739923922745,21.87430873,170.3,170.29,0.063]
[1739923923022,3.9548176,170.21,170.11,0.063]
[1739923923222,15.27730873,170.15,170.11,0.063]
[1739923924607,18.25747433,170.15,170.11,0.063]
[1739923926110,30.55461746,170.12,170.11,0.063]
[1739923926302,44.96646599,170.12,170.11,0.063]
[1739923926737,63.44093859,170.12,170.11,0.063]
[1739923927219,38.92639356,170.12,170.11,0.063]
[1739923927422,24.51454503,170.12,170.11,0.063]
[1739923932037,2.9801656,170.15,170.11,0.063]
[1739923932205,24.51454503,170.13,170.11,0.063]
[1739923932743,24.51454503,170.12,170.11,0.063]
[1739923935116,2.9801656,170.15,170.11,0.063]
[1739923935317,24.51454503,170.12,170.11,0.063]
[1739923936830,49.02909006,170.12,170.11,0.063]
[1739923937216,49.02909006,170.12,170.01,0.063]
[1739923937217,13.41184853,170.09,170.01,0.063]
[1739923937528,24.51454503,170.02,170.01,0.063]
[1739923938644,24.51454503,170.03,170.01,0.063]
[1739923939142,24.51454503,170.02,170.01,0.063]
[1739923942043,37.92639356,170.02,170.01,0.063]
[1739923942413,24.51454503,170.02,170.01,0.063]
[1739923944235,24.51454503,170.03,170.01,0.063]
[1739923945630,24.51454503,170.02,170.01,0.063]
[1739923950247,49.02909006,170.02,170.01,0.063]
[1739923950849,24.51454503,170.02,170.01,0.063]
[1739923960470,0.03,170.09,170.05,20.0]
[1739923960652,0.03,170.09,170.08,24.51454503]
[1739923960862,0.03,170.09,170.05,4.98]
[1739923961360,0.03,170.09,170.05,30.8605]
[1739923961561,0.03,170.09,170.07,24.51454503]
[1739923961757,0.03,170.09,170.08,24.51454503]
[1739923962763,0.03,170.09,170.08,30.39404503]
[1739923962961,0.0001,170.09,170.08,126.36319356]
[1739923963265,107.21454503,170.2,170.12,20.0]
[1739923963442,24.51454503,170.19,170.13,24.51454503]
[1739923963848,24.51454503,170.19,170.12,44.51454503]
[1739923964662,24.51454503,170.18,170.12,20.0]
[1739923964849,24.51454503,170.17,170.12,20.0]
[1739923965364,24.51454503,170.18,170.11,35.37274503]
[1739923966164,24.51454503,170.19,170.12,44.51454503]
[1739923966359,24.51454503,170.17,170.12,20.0]
[1739923967281,24.51454503,170.16,170.12,20.0]
[1739923967567,24.51454503,170.16,170.11,4.98]
[1739923968366,24.51454503,170.14,170.08,1.6573]
[1739923968574,24.51454503,170.12,170.08,1.6573]
[1739923968773,24.51454503,170.12,170.08,7.5368]
[1739923969166,24.51454503,170.12,170.08,1.6573]
[1739923970575,24.51454503,170.13,170.08,1.6573]
[1739923970883,24.51454503,170.12,170.08,1.6573]
[1739923971084,24.51454503,170.13,170.08,1.6573]
[1739923971374,30.39244503,170.13,170.08,1.6573]
[1739923971765,24.51454503,170.12,170.08,21.6573]
[1739923972075,24.51454503,170.11,170.05,30.39504503]
[1739923972372,24.51454503,170.12,170.06,24.51454503]
[1739923974074,24.51454503,170.12,170.06,30.39464503]
[1739923974277,24.51454503,170.08,170.04,1.6526]
[1739923974458,24.51454503,170.07,170.02,80.9]
[1739923974779,24.51454503,170.07,170.01,0.063]
[1739923974964,24.51454503,170.06,170.01,0.063]
[1739923975174,24.51454503,170.05,170.01,0.063]
[1739923975565,24.51454503,170.06,170.01,0.063]
[1739923976267,30.39494503,170.06,170.01,0.063]
[1739923977580,24.51454503,170.06,170.01,0.063]
[1739923978262,30.39494503,170.06,170.01,0.063]
[1739923979347,24.51454503,170.05,170.01,0.063]
[1739923980175,5.8809,170.04,170.01,0.063]
[1739923980677,30.39544503,170.04,170.01,0.063]
[1739923981260,24.51454503,170.03,170.01,0.063]
[1739923981676,30.39544503,170.04,170.01,0.063]
[1739923982569,24.51454503,170.05,170.01,0.063]
[1739923982767,5.8803,170.06,170.01,0.063]
[1739923982768,113.09484503,170.06,170.01,0.063]
[1739923982980,113.09484503,170.06,170.03,24.51454503]
[1739923982981,82.7,170.06,170.03,24.51454503]
[1739923984058,82.7,170.06,170.05,24.51454503]
[1739923984266,5.8785,170.11,170.05,24.51454503]
[1739923984457,88.5782,170.12,170.07,24.51454503]
[1739923985866,82.7,170.12,170.07,24.51454503]
[1739923986182,99.2174,170.15,170.09,24.51454503]
[1739923986384,5.8774,170.15,170.09,24.51454503]
[1739923986682,5.8774,170.15,170.1,24.51454503]
[1739923987383,5.8774,170.15,170.09,24.51454503]
[1739923987384,30.39194503,170.15,170.09,24.51454503]
[1739923987598,30.39194503,170.15,170.08,24.51454503]
[1739923987995,30.39194503,170.15,170.09,24.51454503]
[1739923988559,107.21454503,170.16,170.09,24.51454503]
[1739923988767,88.5768,170.16,170.11,24.51454503]
[1739923989474,88.5768,170.16,170.08,5.8795]
[1739923989475,82.7,170.16,170.12,24.51454503]
[1739923989874,5.9064,170.18,170.12,24.51454503]
[1739923990280,30.42094503,170.18,170.12,24.51454503]
[1739923990491,24.51454503,170.17,170.11,20.0]
[1739923990696,24.51454503,170.17,170.11,44.51454503]
[1739923990905,24.54454503,170.18,170.12,24.51454503]
[1739923991403,0.03,170.15,170.12,24.51454503]
[1739923992592,0.03,170.15,170.14,20.0]
[1739923992892,0.03,170.15,170.14,35.29994767]
[1739923994081,0.03,170.15,170.14,41.17744767]
[1739923998867,0.03,170.15,170.14,20.0]
[1739924000495,0.03,170.15,170.13,97.85994767]
[1739924001196,0.03,170.15,170.11,15.29994767]
[1739924002086,0.03,170.15,170.1,21.17874767]
[1739924003607,0.03,170.15,170.09,102.07904767]
[1739924003608,15.32994767,170.15,170.09,102.07904767]
[1739924003790,15.29994767,170.14,170.09,80.9]
[1739924003991,15.29994767,170.13,170.07,15.29994767]
[1739924004393,15.29994767,170.13,170.1,20.0]
[1739924004901,15.29994767,170.13,170.09,0.063]
[1739924005391,21.17744767,170.14,170.09,0.063]
[1739924006094,0.03,170.15,170.11,15.29994767]
[1739924006392,0.03,170.15,170.09,0.063]
[1739924006393,0.03,170.15,170.12,15.29994767]
[1739924006786,0.03,170.15,170.09,0.063]
[1739924006787,0.03,170.15,170.13,15.29994767]
[1739924006980,0.03,170.15,170.14,15.29994767]
[1739924007409,0.03,170.15,170.14,21.17744767]
[1739924009687,0.03,170.15,170.14,15.29994767]
[1739924010501,0.03,170.15,170.14,21.17744767]
[1739924010805,0.03,170.15,170.14,15.29994767]
[1739924011385,0.03,170.15,170.14,21.17744767]
[1739924012094,0.0001,170.15,170.14,115.4892962]
[1739924012301,0.03,170.18,170.17,20.0]
[1739924012500,0.03,170.18,170.17,35.29994767]
[1739924013710,0.03,170.18,170.15,15.29994767]
[1739924014009,0.03,170.18,170.14,106.81744767]
[1739924014225,0.03,170.18,170.14,4.74]
[1739924015088,0.03,170.18,170.14,10.6174]
[1739924015586,0.03,170.18,170.14,25.91734767]
[1739924016622,0.03,170.18,170.14,10.6174]
[1739924016813,0.03,170.18,170.14,25.91734767]
[1739924017515,0.03,170.18,170.14,25.98034767]
[1739924018134,0.03,170.18,170.14,10.6804]
[1739924018415,0.03,170.18,170.17,15.29994767]
[1739924019312,0.03,170.18,170.17,21.17634767]
[1739924019820,0.03,170.18,170.17,15.29994767]
[1739924020222,0.03,170.18,170.17,21.17634767]
[1739924022118,0.03,170.18,170.16,15.29994767]
[1739924023023,0.03,170.18,170.15,5.8771]
[1739924023024,0.03,170.18,170.17,15.29994767]
[1739924023215,0.03,170.18,170.17,15.09994767]
[1739924024123,0.03,170.18,170.17,20.97634767]
[1739924024701,0.03,170.18,170.15,15.29994767]
[1739924025523,0.03,170.18,170.15,21.17684767]
[1739924026094,0.03,170.18,170.16,15.29994767]
[1739924026931,0.03,170.18,170.15,21.17684767]
[1739924028628,0.03,170.18,170.15,21.17704767]
[1739924029808,0.03,170.18,170.15,5.8771]
[1739924030025,0.03,170.18,170.15,21.17704767]
[1739924031743,0.03,170.18,170.14,0.063]
[1739924032045,0.03,170.18,170.14,5.9404]
[1739924033830,15.32994767,170.18,170.14,0.063]
[1739924034714,15.29994767,170.15,170.14,0.063]
[1739924034931,21.17704767,170.15,170.14,0.063]
[1739924038046,15.29994767,170.15,170.14,0.063]
[1739924040117,15.29994767,170.16,170.14,0.063]
[1739924040311,15.29994767,170.17,170.14,0.063]
[1739924040649,21.20614767,170.18,170.14,0.063]
[1739924042356,0.03,170.18,170.14,15.36294767]
[1739924042530,0.03,170.18,170.15,15.29994767]
[1739924042730,0.03,170.18,170.16,15.29994767]
[1739924043438,0.03,170.18,170.15,15.29994767]
[1739924043762,0.03,170.18,170.14,15.36294767]
[1739924044803,15.32994767,170.18,170.14,0.063]
[1739924045072,15.29994767,170.17,170.14,0.063]
[1739924045969,21.17634767,170.17,170.14,0.063]
[1739924046945,15.29994767,170.17,170.14,0.063]
[1739924047262,82.73,170.18,170.14,15.36294767]
[1739924047466,82.73,170.18,170.15,15.29994767]
[1739924047840,0.03,170.18,170.15,15.29994767]
[1739924048038,0.03,170.18,170.17,15.29994767]
[1739924048462,0.03,170.18,170.16,15.29994767]
[1739924048875,0.03,170.18,170.15,15.29994767]
[1739924049054,0.03,170.18,170.14,15.36294767]
[1739924049251,15.29994767,170.17,170.14,0.063]
[1739924049457,15.29994767,170.15,170.14,0.063]
[1739924052062,21.17704767,170.15,170.14,0.063]
[1739924054055,15.29994767,170.15,170.14,0.063]
[1739924055158,106.85244122,170.16,170.14,0.063]
[1739924055455,15.29994767,170.15,170.14,0.063]
[1739924056285,21.17704767,170.15,170.14,0.063]
[1739924059283,1.0,170.14,170.09,0.063]
[1739924059465,15.29994767,170.1,170.09,0.063]
[1739924060255,15.29994767,170.1,170.01,0.063]
[1739924060256,1.0,170.07,170.01,0.063]
[1739924060460,15.29994767,170.03,170.01,0.063]
[1739924060865,15.29994767,170.02,170.01,0.063]
[1739924062589,21.18094767,170.04,170.01,0.063]
[1739924063177,15.29994767,170.02,170.01,0.063]
[1739924065484,82.7,170.03,170.01,0.063]
[1739924066597,15.29994767,170.04,170.01,0.063]
[1739924068275,21.18094767,170.04,170.01,0.063]
[1739924068794,15.29994767,170.03,170.01,0.063]
[1739924070905,5.881,170.04,170.01,0.063]
[1739924071210,15.29994767,170.03,170.01,0.063]
[1739924072305,21.18094767,170.04,170.01,0.063]
[1739924072479,103.88094767,170.04,170.01,0.063]
[1739924074397,21.18154767,170.03,170.01,0.063]
[1739924076615,5.8816,170.03,170.01,0.063]
[1739924078515,88.5816,170.03,170.01,0.063]
[1739924078718,9.80958828,170.02,170.01,0.063]
[1739924078883,9.80958828,170.02,169.96,1.3765]
[1739924079083,9.80958828,170.0,169.94,9.80958828]
[1739924079399,9.80958828,170.0,169.94,15.69388828]
[1739924080286,9.80958828,170.0,169.94,9.80958828]
[1739924080610,5.8826,169.99,169.94,9.80958828]
[1739924080807,5.8826,169.99,169.92,0.063]
[1739924080808,9.80958828,169.96,169.92,0.063]
[1739924081119,9.80958828,169.95,169.92,0.063]
[1739924081286,82.7,169.94,169.92,0.063]
[1739924082203,93.50958828,169.93,169.91,0.063]
[1739924082403,9.80958828,169.88,169.87,0.063]
[1739924082609,111.80793681,169.88,169.87,0.063]
[1739924083785,82.7,169.88,169.87,0.063]
[1739924084213,92.50958828,169.88,169.87,0.063]
[1739924084585,98.05637996,169.88,169.87,0.063]
[1739924087423,15.35637996,169.88,169.87,0.063]
[1739924089331,28.76822849,169.88,169.87,0.063]
[1739924089635,28.76822849,169.88,169.84,0.063]
[1739924089636,28.76822849,169.86,169.84,0.063]
[1739924090208,15.35637996,169.87,169.84,0.063]
[1739924090411,15.35637996,169.86,169.84,0.063]
[1739924090637,28.76822849,169.86,169.84,0.063]
[1739924091214,29.76822849,169.86,169.84,0.063]
[1739924093413,2.93020234,169.86,169.84,0.063]
[1739924093605,15.35637996,169.87,169.84,0.063]
[1739924095144,15.35637996,169.86,169.84,0.063]
[1739924096228,18.29814265,169.87,169.84,0.063]
[1739924099307,1.0,169.93,169.84,0.063]
[1739924099507,2.98290359,169.9,169.85,15.41937996]
[1739924099720,15.35637996,169.92,169.85,15.41937996]
[1739924100235,2.92471825,169.92,169.86,15.35637996]
[1739924100444,15.35637996,169.95,169.88,15.35637996]
[1739924100604,15.35637996,169.94,169.88,15.35637996]
[1739924102434,18.24746041,169.95,169.88,21.24267996]
[1739924102619,18.24746041,169.95,169.88,15.35637996]
[1739924102825,15.35637996,169.94,169.87,15.35637996]
[1739924103022,18.24746041,169.95,169.88,15.35637996]
[1739924103749,15.35637996,169.94,169.87,15.35637996]
[1739924103957,2.89108045,169.95,169.87,15.35637996]
[1739924103958,15.35637996,169.93,169.87,15.35637996]
[1739924104258,15.35637996,169.93,169.85,91.4904]
[1739924104259,15.35637996,169.9,169.85,85.603]
[1739924104421,15.35637996,169.9,169.85,4.703]
[1739924104623,15.35637996,169.9,169.85,0.063]
[1739924104820,15.35637996,169.93,169.86,15.35637996]
[1739924105045,15.35637996,169.93,169.87,15.35637996]
[1739924105046,82.7,169.93,169.87,15.35637996]
[1739924105563,98.05637996,169.93,169.87,15.35637996]
[1739924105756,98.05637996,169.93,169.85,5.9504]
[1739924105757,15.35637996,169.9,169.85,0.063]
[1739924105939,15.35637996,169.86,169.85,0.063]
[1739924106328,82.7,169.88,169.85,0.063]
[1739924107060,98.05637996,169.88,169.85,0.063]
[1739924107264,82.7,169.88,169.85,0.063]
[1739924108573,82.7,169.93,169.87,15.35637996]
[1739924108767,82.7,169.93,169.9,15.35637996]
[1739924109061,82.7,169.95,169.9,15.35637996]
[1739924109431,82.7,169.95,169.91,15.35637996]
[1739924109762,93.38,169.98,169.93,15.35637996]
[1739924109763,176.08,169.98,169.93,15.35637996]
[1739924109949,98.05637996,169.97,169.91,15.35637996]
[1739924110263,0.063,169.94,169.9,15.35637996]
[1739924110631,0.063,169.94,169.91,15.35637996]
[1739924111336,0.063,169.94,169.92,15.35637996]
[1739924111669,0.063,169.94,169.93,15.35637996]
[1739924113368,0.063,169.94,169.93,21.24107996]
[1739924113871,0.063,169.94,169.93,22.79927996]
[1739924114236,15.35637996,170.05,169.99,15.35637996]
[1739924114429,87.38,170.06,170.0,15.35637996]
[1739924114430,82.7,170.04,170.0,15.35637996]
[1739924114633,82.7,170.06,170.01,15.35637996]
[1739924115547,82.7,170.06,170.02,15.35637996]
[1739924115762,82.7,170.06,170.0,15.35637996]
[1739924116759,98.05637996,170.06,170.0,15.35637996]
[1739924116952,98.05637996,170.06,170.03,15.35637996]
[1739924116953,82.7,170.06,170.03,15.35637996]
[1739924118265,82.763,170.08,170.03,15.35637996]
[1739924118979,82.763,170.08,170.02,15.35637996]